bitfinex/quotes_ETHUSD_20220123
["timestamp","ask_amount","ask_price","bid_price","bid_amount"]
[1642957676102,1.22729182,2436.0,2435.1,0.00181059]
[1642957676295,5.53724747,2436.1,2435.1,0.00181059]
[1642957676296,1.22642231,2435.4,2435.1,0.00181059]
[1642957676499,1.22642231,2435.4,2434.8,0.01257035]
[1642957676695,1.17642231,2435.4,2434.6,0.1642]
[1642957677399,0.65186516,2435.1,2434.6,0.1642]
[1642957678401,1.11110076,2435.1,2434.6,0.1642]
[1642957678903,0.4592356,2435.1,2434.4,1.69689611]
[1642957679302,1.24510511,2435.0,2434.4,1.69689611]
[1642957679500,1.70434071,2435.0,2434.4,1.69689611]
[1642957679936,1.70434071,2435.0,2434.4,1.09689611]
[1642957680435,1.70434071,2435.0,2434.3,0.1642]
[1642957680638,1.70434071,2435.0,2434.2,0.1642]
[1642957680840,1.70434071,2435.0,2434.4,0.004]
[1642957681041,0.02548412,2434.9,2434.4,0.004]
[1642957681241,0.51014947,2434.5,2434.4,0.004]
[1642957681438,0.94603881,2434.5,2434.4,0.004]
[1642957681844,2.34679151,2434.5,2434.4,0.004]
[1642957682246,2.51109151,2434.5,2434.4,0.004]
[1642957682642,5.01109151,2434.5,2434.4,0.004]
[1642957684504,4.84679151,2434.5,2434.4,0.004]
[1642957685104,5.84679151,2434.5,2434.4,0.004]
[1642957686106,6.01109151,2434.5,2434.4,0.004]
[1642957686708,1.34010747,2434.1,2433.5,1.4424928]
[1642957686906,4.61033881,2434.5,2433.5,1.4424928]
[1642957686907,4.01014947,2434.5,2434.4,3.72748832]
[1642957687138,3.93848964,2434.5,2434.4,3.72748832]
[1642957687549,3.94193226,2434.5,2434.4,3.72748832]
[1642957687744,2.94193226,2434.5,2434.4,3.72748832]
[1642957687944,4.33754841,2434.5,2434.4,3.72748832]
[1642957688948,7.85,2434.4,2433.4,0.01264419]
[1642957689151,4.33754841,2434.5,2432.4,8.63277159]
[1642957689152,0.5503694,2434.3,2433.0,5.7457]
[1642957689347,0.5503694,2434.3,2433.1,5.35098914]
[1642957689348,0.64690573,2434.0,2433.1,5.35098914]
[1642957689546,0.3860694,2434.0,2433.1,5.35098914]
[1642957689947,1.3708083,2433.8,2433.1,5.35098914]
[1642957690154,1.7568777,2433.8,2433.1,1.42562272]
[1642957690345,1.3708083,2433.8,2433.1,1.42562272]
[1642957692190,1.27201952,2433.4,2433.0,8.2257]
[1642957692389,1.27201952,2433.4,2433.0,4.4]
[1642957692590,0.00340771,2433.7,2433.5,2.54403904]
[1642957693391,0.79551076,2433.7,2433.5,2.54403904]
[1642957693594,1.0,2434.4,2433.6,4.10029322]
[1642957693796,1.0,2433.9,2433.6,4.10029322]
[1642957693994,0.1643,2434.9,2433.6,0.1643]
[1642957694193,4.3048,2435.0,2433.7,0.591]
[1642957694394,0.1643,2434.9,2433.7,0.591]
[1642957694639,0.1643,2434.9,2433.8,1.50088511]
[1642957694842,0.1643,2434.9,2433.9,0.3]
[1642957695039,1.46509855,2434.8,2433.9,0.3]
[1642957695450,0.1643,2434.9,2433.9,24.45]
[1642957695642,0.1643,2434.9,2433.9,0.3]
[1642957695841,4.054,2434.9,2434.4,1.2864271]
[1642957696044,3.8897,2434.9,2434.4,1.2364271]
[1642957696943,3.8897,2434.9,2434.2,4.36643126]
[1642957697144,3.8897,2434.9,2434.1,0.7552]
[1642957697345,3.8897,2434.9,2434.1,1.3552]
[1642957697546,3.8897,2434.9,2434.1,0.7552]
[1642957697547,0.00321229,2434.8,2434.1,0.7552]
[1642957697748,0.16751229,2434.8,2434.1,0.1642]
[1642957698145,1.35743169,2434.7,2434.1,0.1642]
[1642957698586,1.12611556,2434.4,2434.1,0.1642]
[1642957699890,1.35743169,2434.7,2434.0,0.01251383]
[1642957700289,0.16751229,2434.8,2434.0,0.01251383]
[1642957701188,1.32342712,2434.7,2434.0,0.01251383]
[1642957701391,1.32342712,2434.7,2434.0,0.17681383]
[1642957701589,2.66247144,2434.7,2434.0,0.17681383]
[1642957701790,1.22638157,2434.3,2434.0,0.1643]
[1642957701991,1.22638157,2434.3,2434.0,4.2643]
[1642957702241,0.1643,2434.2,2434.0,4.2643]
[1642957703445,1.22638157,2434.3,2434.0,4.2643]
[1642957703645,0.1643,2434.6,2434.0,4.1]
[1642957704243,0.1643,2434.6,2434.1,4.14013748]
[1642957704450,0.06750793,2434.8,2434.1,4.14013748]
[1642957704644,3.8897,2434.9,2434.2,0.01224313]
[1642957705243,3.8897,2434.9,2434.5,1.26727806]
[1642957706887,0.1626321,2434.9,2434.5,1.26727806]
[1642957707088,1.24454401,2435.2,2434.5,1.26727806]
[1642957707291,0.03774401,2435.2,2434.5,1.26727806]
[1642957707492,0.00298316,2434.8,2434.5,1.26727806]
[1642957707792,0.00298316,2434.8,2434.2,0.90324313]
[1642957708091,0.00298316,2434.8,2434.2,1.20324313]
[1642957708790,0.00298316,2434.8,2434.6,1.1079552]
[1642957710835,0.00298316,2434.8,2434.2,0.60324313]
[1642957711036,0.00298316,2434.8,2434.2,0.01224313]
[1642957711936,0.00298316,2434.8,2434.6,1.22235263]
[1642957712340,0.1672788,2435.1,2434.6,1.22235263]
[1642957712742,0.1672788,2435.1,2434.2,0.01224313]
[1642957712942,0.0672788,2435.1,2434.2,4.11224313]
[1642957713785,0.0672788,2435.1,2434.5,1.54432476]
[1642957715487,0.0672788,2435.1,2434.9,1.5093004]
[1642957716087,0.0672788,2435.1,2434.9,1.8093004]
[1642957716291,5.0412,2436.2,2435.1,7.8672]
[1642957716493,5.0412,2436.2,2435.1,12.9940367]
[1642957716696,5.0412,2436.2,2435.1,9.0582]
[1642957717346,5.0412,2436.2,2435.8,1.22410247]
[1642957717551,7.98616389,2436.5,2435.8,1.22410247]
[1642957717746,2.87766389,2436.5,2435.8,1.22410247]
[1642957718545,2.87766389,2436.5,2435.5,0.591]
[1642957718747,2.87766389,2436.5,2435.5,0.891]
[1642957719355,0.04,2436.7,2435.6,4.27207026]
[1642957719548,0.04,2436.7,2435.6,4.87207026]
[1642957719747,0.04,2436.7,2435.7,0.591]
[1642957719949,0.04,2436.7,2435.7,4.75795586]
[1642957720148,0.04,2436.7,2435.7,0.591]
[1642957720550,1.42392578,2436.7,2436.1,1.17760617]
[1642957721784,1.42392578,2436.7,2435.7,7.3452]
[1642957722393,0.00284882,2436.6,2435.7,7.3452]
[1642957722993,0.00284882,2436.6,2435.9,1.18869789]
[1642957723790,0.00284882,2436.6,2435.9,5.28869789]
[1642957726736,0.00284882,2436.6,2435.9,5.58869789]
[1642957727142,0.00284882,2436.6,2436.0,4.05955739]
[1642957727642,0.00284882,2436.6,2435.9,9.94999386]
[1642957728588,0.00284882,2436.6,2436.5,1.4034165]
[1642957729804,0.00284882,2436.6,2436.5,5.61317432]
[1642957729997,0.00284882,2436.6,2436.5,1.9944165]
[1642957730197,0.00284882,2436.6,2436.5,2.2944165]
[1642957730400,0.00284882,2436.6,2436.5,9.5444165]
[1642957730799,0.04,2437.0,2436.6,6.25]
[1642957730998,0.04,2437.0,2436.5,2.5944165]
[1642957731898,0.04,2437.0,2436.5,0.591]
[1642957732141,0.04,2437.0,2436.3,2.0]
[1642957732349,0.00265839,2436.9,2436.3,2.0]
[1642957733141,0.00265839,2436.9,2436.2,1.56143974]
[1642957733341,0.00265839,2436.9,2436.3,4.1]
[1642957735347,1.11637741,2436.8,2436.3,4.1]
[1642957735744,0.00265839,2436.9,2436.3,4.1]
[1642957737401,1.16791894,2436.9,2436.3,4.1]
[1642957738799,0.66791894,2436.9,2436.3,4.1]
[1642957739200,0.61791894,2436.9,2436.3,4.1]
[1642957741036,1.53007895,2437.0,2436.3,4.1]
[1642957742546,0.00246415,2436.8,2436.3,4.1]
[1642957747449,3.03920634,2437.0,2436.3,4.1]
[1642957747654,0.09518072,2436.9,2436.3,4.1]
[1642957747861,1.09518072,2436.9,2436.3,4.1]
[1642957748053,0.79569,2436.8,2436.3,4.1]
[1642957748255,0.012105,2436.6,2436.3,4.1]
[1642957748452,0.591,2436.5,2436.3,4.1]
[1642957748652,7.81249557,2436.4,2436.3,4.1]
[1642957749052,9.01718557,2436.4,2436.3,4.1]
[1642957751496,9.31718557,2436.4,2436.3,4.1]
[1642957752502,9.61963231,2436.4,2436.3,4.1]
[1642957753903,2.66963231,2436.4,2436.3,4.1]
[1642957754106,1.66963231,2436.4,2436.3,4.1]
[1642957754302,2.66963231,2436.4,2436.3,4.1]
[1642957754502,2.16494231,2436.4,2436.3,4.1]
[1642957754746,1.16494231,2436.4,2436.3,4.1]
[1642957754945,2.16494231,2436.4,2436.3,4.1]
[1642957755146,4.16494231,2436.4,2436.3,4.1]
[1642957755346,5.16494231,2436.4,2436.3,4.1]
[1642957757850,5.36963231,2436.4,2436.3,4.1]
[1642957758050,5.66963231,2436.4,2436.3,4.1]
[1642957759799,2.66963231,2436.4,2436.3,4.1]
[1642957760003,0.00244674,2436.4,2436.3,4.1]
[1642957761003,0.00244674,2436.4,2436.3,10.137]
[1642957761199,0.00244674,2436.4,2436.3,14.8858767]
[1642957761400,0.00244674,2436.4,2436.3,14.88451163]
[1642957761599,0.00244674,2436.4,2436.3,10.37551163]
[1642957762455,0.04244674,2437.0,2436.3,10.37551163]
[1642957762655,0.04244674,2437.0,2436.4,1.2657141]
[1642957762857,0.04244674,2437.0,2436.5,28.51073922]
[1642957763059,0.04244674,2437.0,2436.6,1.591]
[1642957763256,0.04244674,2437.0,2436.7,4.25793777]
[1642957763463,0.04244674,2437.0,2436.7,5.14893777]
[1642957763857,0.04244674,2437.0,2436.7,0.891]
[1642957764658,0.04244674,2437.0,2436.8,0.164]
[1642957765887,0.04244674,2437.0,2436.9,1.30986651]
[1642957766097,0.04244674,2437.0,2436.9,4.45986651]
[1642957767893,0.03244674,2437.3,2436.9,1.90986651]
[1642957772352,0.0023068,2437.2,2436.9,1.90986651]
[1642957773998,0.0023068,2437.2,2436.9,6.00986651]
[1642957775098,0.0023068,2437.2,2437.0,5.07417293]
[1642957775296,0.0023068,2437.2,2437.0,0.891]
[1642957775497,0.0023068,2437.2,2437.0,4.95423251]
[1642957775697,0.0023068,2437.2,2437.0,5.98593282]
[1642957775896,0.0023068,2437.2,2437.1,8.39576508]
[1642957776298,0.0023068,2437.2,2437.1,4.09576508]
[1642957776896,0.0023068,2437.2,2437.1,0.3]
[1642957777143,0.0023068,2437.2,2437.1,4.45]
[1642957777348,0.0023068,2437.2,2437.1,4.75]
[1642957777850,0.0023068,2437.2,2437.0,0.164]
[1642957779056,0.0023068,2437.2,2436.9,5.79892243]
[1642957780055,0.0023068,2437.2,2436.9,4.38859997]
[1642957780254,0.0023068,2437.2,2436.9,4.3004]
[1642957781302,1.18443519,2437.2,2436.9,4.3004]
[1642957781704,2.18443519,2437.2,2436.9,4.3004]
[1642957781900,1.18443519,2437.2,2436.9,4.3004]
[1642957782102,2.18443519,2437.2,2436.9,4.3004]
[1642957782304,1.18443519,2437.2,2436.9,4.3004]
[1642957782503,2.18443519,2437.2,2436.9,4.3004]
[1642957782703,1.18443519,2437.2,2436.9,4.3004]
[1642957782903,2.18443519,2437.2,2436.9,4.3004]
[1642957785647,6.6773173,2437.2,2436.9,4.1]
[1642957785845,0.591,2437.1,2436.9,4.1]
[1642957786044,8.68886054,2437.0,2436.9,4.1]
[1642957786447,9.68886054,2437.0,2436.9,4.1]
[1642957787247,9.89355054,2437.0,2436.9,4.1]
[1642957787447,9.68886054,2437.0,2436.9,4.1]
[1642957788047,10.19355054,2437.0,2436.9,4.1]
[1642957789405,1.50469,2437.0,2436.9,4.1]
[1642957789601,0.50469,2437.0,2436.9,4.1]
[1642957789898,7.15469,2437.0,2436.9,4.1]
[1642957790099,8.15469,2437.0,2436.9,4.1]
[1642957791105,8.45469,2437.0,2436.9,4.1]
[1642957791301,7.85,2436.9,2436.1,3.8587]
[1642957791501,0.20469,2436.8,2436.1,3.8587]
[1642957791905,0.21560216,2436.2,2435.9,3.6984]
[1642957792149,0.21560216,2436.2,2435.6,3.115]
[1642957792350,1.35741951,2436.0,2435.6,3.115]
[1642957792553,1.35741951,2436.0,2435.4,9.19942437]
[1642957792750,1.35741951,2436.0,2435.4,1.49412437]
[1642957793152,4.92116764,2436.7,2435.4,1.49412437]
[1642957793352,4.84916114,2436.7,2435.4,1.49412437]
[1642957793552,1.0,2436.6,2435.4,1.49412437]
[1642957793953,4.50544561,2436.5,2435.4,1.49412437]
[1642957794152,1.34421659,2436.1,2435.4,1.49412437]
[1642957794353,1.34421659,2436.1,2435.4,5.59412437]
[1642957797604,0.0352542,2436.0,2435.4,5.59412437]
[1642957799206,0.0352542,2436.0,2435.9,1.29950409]
[1642957800853,0.0352542,2436.0,2435.2,1.8421]
[1642957801053,0.0352542,2436.0,2435.1,3.7513]
[1642957801455,0.0352542,2436.0,2435.2,1.1642]
[1642957801655,0.0352542,2436.0,2435.2,1.7552]
[1642957801852,0.0352542,2436.0,2435.3,24.15]
[1642957802056,0.0352542,2436.0,2435.4,1.7552]
[1642957802258,0.0352542,2436.0,2435.4,2.0552]
[1642957802656,0.0352542,2436.0,2435.5,1.42430511]
[1642957802858,0.0352542,2436.0,2435.6,0.7552]
[1642957803056,5.42e-05,2436.0,2435.7,24.15]
[1642957803257,5.42e-05,2436.0,2435.8,0.591]
[1642957804304,5.42e-05,2436.0,2435.8,0.891]
[1642957804505,5.42e-05,2436.0,2435.8,1.191]
[1642957804804,5.42e-05,2436.0,2435.8,25.341]
[1642957805012,5.42e-05,2436.0,2435.9,8.0142]
[1642957805208,5.42e-05,2436.0,2435.9,36.74298706]
[1642957805606,5.42e-05,2436.0,2435.9,32.1642]
[1642957806008,5.42e-05,2436.0,2435.9,32.7552]
[1642957807559,0.00209351,2436.0,2435.9,32.7552]
[1642957807756,0.00209351,2436.0,2435.9,8.6052]
[1642957807957,0.00209351,2436.0,2435.9,11.8079]
[1642957808159,0.00209351,2436.0,2435.9,5.18017366]
[1642957808358,0.00209351,2436.0,2435.9,1.22227366]
[1642957809556,0.00209351,2436.0,2435.9,5.92227366]
[1642957812499,1.38164073,2436.7,2435.9,5.92227366]
[1642957812500,0.00209351,2436.7,2435.9,5.92227366]
[1642957812704,0.00209351,2436.7,2436.5,1.54063046]
[1642957815051,0.00209351,2436.7,2436.5,5.64063046]
[1642957815253,0.00209351,2436.7,2436.5,6.77313046]
[1642957817457,2.26010617,2437.3,2436.5,6.77313046]
[1642957817674,2.21010617,2437.3,2436.5,6.77313046]
[1642957818055,2.21010617,2437.3,2436.5,5.64063046]
[1642957821706,2.21010617,2437.3,2436.5,4.1]
[1642957822561,1.37162286,2437.0,2436.5,4.1]
[1642957822957,1.37162286,2437.0,2436.7,1.42669724]
[1642957824358,1.37162286,2437.0,2436.5,4.1]
[1642957825159,1.0,2437.2,2436.5,4.1]
[1642957825358,1.21010617,2437.3,2436.5,4.1]
[1642957825560,1.21010617,2437.3,2436.7,1.15236694]
[1642957826006,1.21010617,2437.3,2436.8,3.92521669]
[1642957826007,0.00205943,2437.3,2436.8,3.92521669]
[1642957826207,0.00205943,2437.3,2436.9,0.10045595]
[1642957826409,0.00205943,2437.3,2437.0,0.164]
[1642957826607,0.00205943,2437.3,2437.0,24.314]
[1642957826808,0.00205943,2437.3,2437.1,1.16099355]
[1642957827005,0.00205943,2437.3,2437.1,1.46099355]
[1642957828011,0.00205943,2437.3,2437.2,9.27276294]
[1642957828213,5.943e-05,2437.4,2437.3,7.514]
[1642957828417,0.04,2437.6,2437.4,7.85]
[1642957828613,0.0001,2437.6,2437.5,13.14397474]
[1642957828823,0.0001,2437.6,2437.5,8.405]
[1642957829210,0.0001,2437.6,2437.5,32.555]
[1642957829865,0.0301,2438.6,2437.6,6.45]
[1642957830064,0.0301,2438.6,2437.6,7.641]
[1642957831467,0.0301,2438.6,2437.7,24.15]
[1642957831664,0.0301,2438.6,2437.8,0.591]
[1642957831869,0.0001,2438.9,2437.9,6.6]
[1642957832066,0.0001,2438.9,2438.7,1.238517]
[1642957835103,0.0001,2438.9,2438.8,7.364]
[1642957835304,0.0001,2438.9,2438.8,11.3065084]
[1642957835504,0.0001,2438.9,2438.8,8.955]
[1642957835706,0.04,2439.8,2439.7,1.43513159]
[1642957836109,0.04,2439.8,2439.7,1.73513159]
[1642957836402,0.04,2439.8,2439.7,2.31633159]
[1642957837006,0.03717587,2439.8,2439.7,2.31633159]
[1642957837257,0.03717587,2439.8,2439.7,2.61633159]
[1642957837456,0.03897091,2439.8,2439.7,2.61633159]
[1642957837656,0.03897091,2439.8,2439.7,2.48013159]
[1642957837860,0.03897091,2439.8,2439.7,0.8812]
[1642957838058,0.03897091,2439.8,2439.3,0.67919997]
[1642957838360,0.03897091,2439.8,2439.3,0.08819997]
[1642957838562,0.03897091,2439.8,2439.2,2.0]
[1642957838765,1.19312151,2439.7,2439.2,2.0]
[1642957838961,0.05191528,2439.8,2439.2,2.0]
[1642957839258,0.05191528,2439.8,2439.1,1.49323751]
[1642957839462,0.03897091,2439.8,2439.2,0.591]
[1642957839857,0.03897091,2439.8,2439.3,24.15]
[1642957840058,0.03897091,2439.8,2439.3,0.591]
[1642957840259,0.03897091,2439.8,2439.4,1.13813274]
[1642957840461,49.88897091,2440.0,2439.5,5.45]
[1642957840659,49.88897091,2440.0,2439.6,0.591]
[1642957840904,49.88897091,2440.0,2439.6,0.7548]
[1642957841098,35.41777091,2440.0,2439.6,1.0548]
[1642957841304,35.41777091,2440.0,2439.6,2.0548]
[1642957841498,35.41777091,2440.0,2439.7,24.45]
[1642957841698,35.41777091,2440.0,2439.8,0.7548]
[1642957841897,35.41777091,2440.0,2439.9,6.39107231]
[1642957842099,35.41777091,2440.0,2439.9,8.74587231]
[1642957842303,35.41777091,2440.0,2439.9,32.89587231]
[1642957842704,35.41777091,2440.0,2439.9,8.74587231]
[1642957843002,35.41777091,2440.0,2439.9,7.58207231]
[1642957843205,35.41777091,2440.0,2439.9,8.58207231]
[1642957844648,35.41777091,2440.0,2439.9,3.48207231]
[1642957845847,35.41777091,2440.0,2439.9,7.58207231]
[1642957846354,35.41777091,2440.0,2439.9,6.58207231]
[1642957846546,35.41777091,2440.0,2439.9,7.58207231]
[1642957846751,35.41777091,2440.0,2439.9,6.58207231]
[1642957846948,35.41777091,2440.0,2439.9,7.58207231]
[1642957847553,35.41946136,2440.0,2439.9,7.58207231]
[1642957848399,35.41946136,2440.0,2439.9,6.58207231]
[1642957849499,35.41946136,2440.0,2439.9,7.58207231]
[1642957849701,18.31167675,2440.0,2439.9,34.88207231]
[1642957850008,0.00265878,2441.2,2440.2,24.15]
[1642957850202,0.00265878,2441.5,2440.5,0.01214977]
[1642957850600,0.00265878,2441.5,2440.5,0.31214977]
[1642957850801,1.25961948,2441.5,2440.5,0.31214977]
[1642957851901,1.25961948,2441.5,2440.6,1.51633677]
[1642957852149,1.25961948,2441.5,2440.5,0.31214977]
[1642957852761,0.3,2441.4,2440.3,2.0]
[1642957852959,0.20469,2441.3,2440.3,2.0]
[1642957853257,0.01264762,2440.9,2440.3,2.0]
[1642957853857,1.4622069,2440.7,2440.3,2.0]
[1642957854059,1.4622069,2440.7,2439.9,1.19935935]
[1642957854266,1.4622069,2440.7,2439.6,7.473]
[1642957855258,1.31623181,2440.3,2439.7,1.46515822]
[1642957855461,1.0,2440.8,2439.7,1.46515822]
[1642957855659,2.21634762,2440.9,2439.7,1.46515822]
[1642957856311,2.21634762,2440.9,2439.7,5.56515822]
[1642957856806,1.27905868,2440.5,2439.7,5.56515822]
[1642957857905,2.21634762,2440.9,2440.1,1.37461461]
[1642957858110,1.2037,2440.9,2440.1,1.37461461]
[1642957858506,1.2037,2440.9,2439.7,8.79097288]
[1642957858707,1.2037,2440.9,2439.8,0.3]
[1642957858906,2.2037,2440.9,2439.8,0.3]
[1642957859759,2.2037,2440.9,2439.8,1.69554518]
[1642957860162,2.2037,2440.9,2440.2,1.50972566]
[1642957860361,2.2037,2440.9,2439.8,0.3]
[1642957860362,1.0,2440.9,2439.8,0.3]
[1642957860763,3.6094,2441.0,2439.8,0.3]
[1642957860967,1.225,2441.2,2439.9,24.15]
[1642957861166,1.38166006,2441.5,2440.0,1.1638]
[1642957861364,3.99715878,2441.6,2440.1,0.591]
[1642957861567,7.43,2441.7,2440.3,24.15]
[1642957861765,7.43,2441.7,2440.4,24.3138]
[1642957861969,7.43,2441.7,2441.1,1.38194763]
[1642957862266,0.06698,2441.6,2440.5,3.7955]
[1642957862467,1.19684085,2441.5,2440.5,4.0955]
[1642957862668,1.19684085,2441.5,2440.5,4.3955]
[1642957863404,1.19684085,2441.5,2440.6,1.24091792]
[1642957864200,0.067,2441.6,2440.6,1.24091792]
[1642957864400,1.13871524,2441.5,2440.6,1.24091792]
[1642957864801,0.067,2441.6,2440.6,5.53327385]
[1642957865200,1.34482828,2441.5,2440.6,5.39742933]
[1642957865401,0.017,2441.6,2440.7,0.3]
[1642957865605,0.017,2441.6,2440.8,0.69145595]
[1642957865802,0.017,2441.6,2440.9,5.11148608]
[1642957866003,0.017,2441.6,2441.0,0.591]
[1642957866205,0.017,2441.6,2441.1,0.1638]
[1642957866404,0.017,2441.6,2441.1,24.9048]
[1642957866804,0.017,2441.6,2441.1,25.2048]
[1642957867003,0.017,2441.6,2441.4,1.38530988]
[1642957867276,0.017,2441.6,2441.1,0.7548]
[1642957867471,0.017,2441.6,2441.1,0.1638]
[1642957867669,0.017,2441.6,2440.8,2.0]
[1642957867869,0.01240211,2441.5,2440.8,2.0]
[1642957868070,0.01240211,2441.5,2440.6,4.1]
[1642957868269,0.01240211,2441.5,2440.7,1.10123335]
[1642957868270,1.35855702,2441.2,2440.7,1.10123335]
[1642957869070,0.01240211,2441.5,2440.7,1.10123335]
[1642957869269,0.017,2441.6,2440.7,1.10123335]
[1642957869470,0.017,2441.6,2440.2,0.1638]
[1642957869672,0.01282987,2441.3,2440.2,0.1638]
[1642957869876,0.20469,2441.2,2440.2,0.1638]
[1642957870069,0.23213587,2441.2,2440.3,2.0]
[1642957870271,0.20469,2441.2,2440.3,2.0]
[1642957870471,1.3345854,2440.5,2440.3,2.0]
[1642957871104,1.3345854,2440.5,2440.2,0.1638]
[1642957872412,0.00296994,2440.4,2440.2,0.1638]
[1642957872609,0.00296994,2440.4,2440.0,0.08819997]
[1642957874110,0.00296994,2440.4,2439.6,0.1638]
[1642957874314,1.35324262,2439.9,2439.6,0.1638]
[1642957874761,1.30324262,2439.9,2439.6,0.1638]
[1642957874966,1.30324262,2439.9,2439.7,1.29114602]
[1642957875162,0.00296994,2440.4,2439.6,0.1638]
[1642957875361,0.00296994,2440.4,2439.5,0.26425595]
[1642957876161,0.00296994,2440.4,2440.2,1.24292115]
[1642957876967,0.00296994,2440.4,2440.2,1.19292115]
[1642957877472,1.20276619,2441.2,2440.2,2.84122115]
[1642957877668,1.20276619,2441.2,2440.3,1.1638]
[1642957877868,1.20276619,2441.2,2440.3,0.1638]
[1642957878504,1.20276619,2441.2,2440.9,1.26696276]
[1642957878705,0.00296619,2441.2,2440.9,1.26696276]
[1642957879306,0.00296619,2441.2,2440.3,10.1832913]
[1642957880512,0.00265878,2442.0,2441.1,8.21215336]
[1642957880814,0.04,2442.5,2441.1,8.21215336]
[1642957880815,0.04265878,2442.3,2441.3,0.03315928]
[1642957881010,0.04265878,2442.3,2441.2,1.08819997]
[1642957881206,0.04,2442.3,2441.2,0.08819997]
[1642957881406,1.08799204,2441.9,2441.5,1.23916019]
[1642957881607,1.22871524,2442.3,2441.5,1.23916019]
[1642957881808,1.12871524,2442.3,2441.3,0.1638]
[1642957882007,1.12871524,2442.3,2441.2,0.08819997]
[1642957882269,1.12871524,2442.3,2441.2,0.03819997]
[1642957882468,0.00285185,2442.2,2441.2,0.03819997]
[1642957882675,1.51184344,2442.1,2441.0,1.16403584]
[1642957882876,0.01217114,2441.9,2440.7,2.0]
[1642957883072,0.79569,2441.8,2440.3,8.0194913]
[1642957883273,0.79569,2441.8,2440.4,4.0665913]
[1642957883871,1.08760864,2440.8,2440.4,5.22940999]
[1642957884070,1.08760864,2440.8,2440.4,1.76281869]
[1642957884871,1.08760864,2440.8,2440.4,1.16281869]
[1642957885071,1.08760864,2440.8,2440.4,1.46281869]
[1642957885472,1.08760864,2440.8,2440.4,1.76281869]
[1642957885670,1.08760864,2440.8,2440.4,1.16281869]
[1642957885906,0.1,2441.6,2440.8,1.23982963]
[1642957887104,1.14869835,2441.4,2440.8,1.23982963]
[1642957890066,1.14869835,2441.4,2440.7,0.591]
[1642957890965,1.14779485,2441.4,2440.7,0.591]
[1642957891265,1.14779485,2441.4,2441.0,1.33121823]
[1642957892063,1.14779485,2441.4,2440.7,0.591]
[1642957892472,0.00281821,2441.3,2440.7,0.591]
[1642957893076,0.00281821,2441.3,2440.9,1.50668706]
[1642957894029,1.29793347,2441.3,2440.9,1.50668706]
[1642957894231,1.29793347,2441.3,2440.7,0.591]
[1642957895437,1.29793347,2441.3,2440.7,1.97273107]
[1642957896936,1.29793347,2441.3,2440.7,6.07273107]
[1642957898053,1.29793347,2441.3,2440.7,6.37273107]
[1642957898854,1.29793347,2441.3,2440.7,4.691]
[1642957900464,2.52703347,2441.3,2440.7,4.1]
[1642957900660,0.04264459,2441.2,2440.7,4.1]
[1642957900918,1.04264459,2441.2,2440.7,4.1]
[1642957901100,4.76612806,2441.1,2440.7,4.1]
[1642957901502,0.02856074,2440.9,2440.7,4.1]
[1642957901701,1.0,2441.0,2440.7,4.1]
[1642957901904,1.27325334,2440.9,2440.7,4.1]
[1642957907663,0.00279951,2440.8,2440.7,4.1]
[1642957908065,0.00279951,2440.8,2440.7,4.4]
[1642957908712,0.00279951,2440.8,2440.7,4.1]
[1642957909911,0.00279951,2440.8,2440.7,4.4]
[1642957910315,0.00279951,2440.8,2440.7,4.35]
[1642957910915,0.00279951,2440.8,2440.7,4.1]
[1642957912367,0.00279951,2440.8,2440.7,4.4]
[1642957912567,1.88094783,2441.4,2441.0,1.13276996]
[1642957912765,1.88094783,2441.4,2440.7,4.991]
[1642957913366,1.46644783,2441.4,2440.7,4.991]
[1642957914073,0.00279951,2441.4,2441.0,1.19552737]
[1642957916305,0.00279951,2441.4,2440.7,5.291]
[1642957917411,0.00279951,2441.4,2440.7,4.691]
[1642957917612,0.00279951,2441.4,2440.7,4.1]
[1642957918613,1.24306168,2441.1,2440.7,4.1]
[1642957920252,0.00279951,2441.4,2440.7,4.1]
[1642957921059,0.00279951,2441.4,2441.2,1.15752169]
[1642957922456,0.1,2441.6,2441.2,1.15752169]
[1642957922457,0.00281821,2441.6,2441.2,1.15752169]
[1642957923705,0.00281821,2441.6,2440.8,4.0613]
[1642957924206,0.00281821,2441.6,2440.8,3.8975]
[1642957924804,0.00281821,2441.6,2441.1,1.47686706]
[1642957927559,2.21309466,2441.8,2441.1,1.47686706]
[1642957927762,1.21309466,2441.8,2441.1,1.47686706]
[1642957927961,1.21309466,2441.8,2441.1,5.57686706]
[1642957929361,0.15761123,2441.8,2441.1,5.57686706]
[1642957930259,0.15761123,2441.8,2441.5,1.347321]
[1642957930461,0.15761123,2441.8,2441.1,4.1]
[1642957930661,0.00282569,2441.8,2441.1,4.1]
[1642957931903,0.00282569,2441.8,2441.3,1.55612936]
[1642957932511,0.00283317,2442.0,2441.3,2.44712936]
[1642957932709,0.00283317,2442.0,2441.3,2.74712936]
[1642957933214,0.00283317,2442.0,2441.9,1.363411]
[1642957933808,0.00283317,2442.0,2441.9,3.593711]
[1642957934007,0.00283317,2442.0,2441.9,3.757511]
[1642957934208,0.00283317,2442.0,2441.9,8.257511]
[1642957935262,0.00283317,2442.0,2441.9,3.157511]
[1642957935467,0.00283317,2442.0,2441.9,1.7941]
[1642957935666,0.00283317,2442.0,2441.9,1.2031]
[1642957936065,5.90283317,2442.0,2441.9,1.2031]
[1642957936268,7.37355638,2442.0,2441.9,1.2031]
[1642957936465,7.37355638,2442.0,2441.9,1.0393]
[1642957937066,2.47355638,2442.0,2441.2,5.7613]
[1642957937268,2.47355638,2442.0,2441.0,3.2989]
[1642957937269,1.47355638,2442.0,2441.0,3.2989]
[1642957938067,1.39393108,2441.6,2441.4,1.52091064]
[1642957938267,1.39393108,2441.6,2441.0,3.2989]
[1642957938510,1.39393108,2441.6,2440.9,2.0]
[1642957938908,1.17773317,2442.0,2440.9,2.6]
[1642957939112,0.00283317,2442.0,2441.0,0.1638]
[1642957939509,0.00283317,2442.0,2441.9,1.28338623]
[1642957940510,0.00283317,2442.0,2441.2,0.1638]
[1642957940914,5.80968286,2442.6,2441.2,0.1638]
[1642957940915,0.007,2442.6,2441.9,0.01223068]
[1642957941511,0.007,2442.6,2442.0,0.591]